bitfinex/quotes_SOLUSD_20251013
["timestamp","ask_amount","ask_price","bid_price","bid_amount"]
[1760345544459,1e-08,198.96,198.94,15.51674613]
[1760345544666,1e-08,198.96,198.95,15.51674613]
[1760345545253,1e-08,198.96,198.95,20.54313466]
[1760345546460,1e-08,198.96,198.95,5.02638853]
[1760345546645,0.67000001,198.96,198.95,5.02638853]
[1760345547338,0.67000001,198.96,198.93,12.5672347]
[1760345547538,0.67,198.95,198.93,12.5672347]
[1760345547758,1e-08,198.96,198.93,12.5672347]
[1760345547759,0.67,198.94,198.93,12.5672347]
[1760345549682,4.62027092,198.94,198.92,5.02714659]
[1760345549962,0.67,198.93,198.92,5.02714659]
[1760345550267,0.67,198.95,198.92,17.59501306]
[1760345550652,0.67,198.94,198.92,17.59501306]
[1760345551760,0.67,198.93,198.92,17.59501306]
[1760345552141,0.67000001,198.96,198.92,17.59501306]
[1760345552374,0.67,198.95,198.92,17.59501306]
[1760345552556,0.67,198.94,198.92,12.56786647]
[1760345553648,0.67,198.94,198.92,17.59501306]
[1760345553969,0.10080086,198.93,198.92,17.59501306]
[1760345555660,0.10080086,198.93,198.92,12.56786647]
[1760345557577,0.10080086,198.93,198.92,17.59501306]
[1760345558567,0.10581351,198.94,198.93,85.00763745]
[1760345559365,0.10581351,198.94,198.93,234.62438358]
[1760345560948,0.10581351,198.94,198.93,229.98411266]
[1760345561263,0.10581351,198.94,198.93,230.67411266]
[1760345561467,0.10581351,198.94,198.93,219.10763745]
[1760345561668,0.77581351,198.94,198.93,219.10763745]
[1760345562052,4.72608443,198.94,198.93,219.10763745]
[1760345562250,0.77581351,198.94,198.93,219.10763745]
[1760345563565,0.10581351,198.94,198.93,219.10763745]
[1760345564466,0.77581351,198.94,198.93,219.10763745]
[1760345564970,0.77581351,198.94,198.93,5.02689388]
[1760345565173,0.77581351,198.94,198.91,17.59575122]
[1760345565869,0.67,198.93,198.91,17.59575122]
[1760345566067,0.10581351,198.94,198.91,17.59575122]
[1760345566262,0.77581351,198.94,198.91,17.59575122]
[1760345567249,0.77581351,198.94,198.91,12.5683519]
[1760345569365,0.77581351,198.94,198.91,17.59575122]
[1760345569561,0.71,198.93,198.91,5.02739932]
[1760345569756,0.71,198.92,198.91,5.02739932]
[1760345570779,0.81581351,198.94,198.91,17.59589763]
[1760345570960,0.67,198.93,198.91,5.02739932]
[1760345571167,0.67,198.92,198.91,5.02739932]
[1760345571368,0.67,198.92,198.89,17.59766705]
[1760345572076,0.10581351,198.94,198.9,0.66]
[1760345572379,0.77581351,198.94,198.9,0.66]
[1760345572784,0.67,198.93,198.89,20.12378375]
[1760345573086,0.67,198.92,198.89,17.59766705]
[1760345573265,0.67,198.91,198.89,17.59766705]
[1760345573786,0.09906644,198.9,198.89,20.12378375]
[1760345574079,0.09906644,198.9,198.89,17.59766705]
[1760345575673,0.09906644,198.9,198.89,20.78378375]
[1760345576996,0.09906644,198.9,198.89,20.12378375]
[1760345577297,0.09906644,198.9,198.89,17.59766705]
[1760345578286,0.76906644,198.9,198.89,17.59766705]
[1760345578479,0.09906644,198.9,198.89,18.25766705]
[1760345578679,0.09906644,198.9,198.89,20.78378375]
[1760345579573,0.76906644,198.9,198.89,5.02790487]
[1760345580185,0.09906644,198.9,198.88,5.02815768]
[1760345580362,20.8,198.87,198.78,12.57633995]
[1760345580563,2.5261167,198.8,198.73,8.2180696]
[1760345580780,2.01760359,198.89,198.75,12.57808617]
[1760345580961,5.12678718,198.9,198.75,12.57808617]
[1760345580962,0.67,198.84,198.8,2.5261167]
[1760345581367,0.67,198.83,198.78,0.66]
[1760345581565,0.67,198.83,198.78,3.1861167]
[1760345581976,0.67,198.86,198.79,0.66]
[1760345582170,0.67,198.86,198.82,5.02967508]
[1760345582371,2.5261167,198.88,198.82,5.02967508]
[1760345582573,0.67,198.85,198.82,5.02967508]
[1760345583465,25.92678718,198.9,198.81,5.02992807]
[1760345583466,3.1961167,198.84,198.81,5.02992807]
[1760345583781,0.67,198.83,198.81,5.02992807]
[1760345584483,0.67,198.82,198.79,5.0302808]
[1760345584689,3.1961167,198.81,198.79,5.0302808]
[1760345584860,0.67,198.8,198.79,5.0302808]
[1760345585065,0.67,198.8,198.76,5.03119339]
[1760345585281,0.67,198.79,198.76,17.60917688]
[1760345585487,0.67,198.81,198.76,100.53529358]
[1760345585884,0.67,198.81,198.76,101.19529358]
[1760345586309,3.1961167,198.8,198.76,85.43119339]
[1760345586472,3.1961167,198.82,198.76,85.43119339]
[1760345586790,0.67,198.83,198.78,2.5261167]
[1760345586995,0.67,198.82,198.78,2.5261167]
[1760345587394,0.67,198.81,198.77,3.1861167]
[1760345587581,0.67,198.81,198.78,5.03068719]
[1760345588903,0.67,198.8,198.78,80.4]
[1760345589511,0.67,198.88,198.79,3.1861167]
[1760345589795,0.67,198.88,198.82,2.5261167]
[1760345589967,0.67,198.88,198.82,82.9261167]
[1760345590383,3.1961167,198.87,198.82,80.4]
[1760345590595,0.67,198.86,198.82,80.4]
[1760345590781,0.67,198.85,198.83,5.02942211]
[1760345590964,2.5261167,198.84,198.83,80.4]
[1760345591167,0.67,198.84,198.83,80.4]
[1760345592385,3.1961167,198.86,198.83,80.4]
[1760345592693,3.1961167,198.86,198.83,85.4293715]
[1760345592890,0.67,198.86,198.83,85.4293715]
[1760345593767,0.09503049,198.84,198.83,85.4293715]
[1760345594570,0.76503049,198.84,198.83,80.4]
[1760345595288,2.62114719,198.84,198.83,80.4]
[1760345595488,0.09503049,198.84,198.83,80.4]
[1760345595691,0.09503049,198.84,198.83,85.42942211]
[1760345599797,3.30114719,198.84,198.8,80.4]
[1760345600102,2.62114719,198.84,198.81,0.71]
[1760345600298,3.30114719,198.84,198.8,85.43010484]
[1760345600800,0.09503049,198.84,198.81,3.2361167]
[1760345601098,0.09503049,198.84,198.83,5.02942211]
[1760345601299,0.09503049,198.84,198.83,85.42942211]
[1760345601808,0.09503049,198.84,198.83,86.13942211]
[1760345602483,0.09503049,198.84,198.83,88.66553881]
[1760345602684,0.09503049,198.84,198.83,99.54201402]
[1760345602995,0.10447938,198.85,198.84,91.18144472]
[1760345603191,0.10447938,198.85,198.84,94.41756142]
[1760345603396,0.10447938,198.85,198.84,228.51756142]
[1760345603904,1e-08,198.86,198.84,225.99144472]
[1760345604093,1e-08,198.86,198.85,3.2361167]
[1760345605122,1e-08,198.89,198.87,15.90488572]
[1760345605398,1e-08,198.9,198.88,13.40259191]
[1760345605614,1e-08,198.9,198.89,13.40259191]
[1760345605782,0.09780239,198.93,198.89,14.11259191]
[1760345605991,1e-08,198.92,198.91,13.40259191]
[1760345606495,1e-08,198.92,198.91,14.11259191]
[1760345607096,1e-08,198.92,198.91,19.13999123]
[1760345607993,0.09780239,198.93,198.92,31.67647521]
[1760345607994,1e-08,198.93,198.92,31.67647521]
[1760345608300,1e-08,198.93,198.92,34.91259191]
[1760345608495,1e-08,198.93,198.92,14.11259191]
[1760345608690,3.2061167,199.05,198.99,2.5261167]
[1760345609089,2.5261167,199.05,199.0,5.02512562]
[1760345609308,0.68,199.04,199.0,5.02512562]
[1760345609806,0.68,199.03,199.0,5.02512562]
[1760345610605,0.68,199.03,198.99,5.02537815]
[1760345611288,2.5261167,199.01,198.99,5.02537815]
[1760345611489,3.2061167,199.02,198.99,5.02537815]
[1760345611707,0.68,199.01,198.99,5.02537815]
[1760345612006,2.5261167,199.0,198.93,5.026817]
[1760345612207,2.5261167,198.98,198.93,5.026817]
[1760345612406,3.2061167,198.98,198.93,5.026817]
[1760345612614,2.5261167,198.98,198.93,5.026817]
[1760345612911,0.68,198.97,198.93,5.026817]
[1760345613789,0.10901737,198.94,198.93,5.736817]
[1760345613995,0.10901737,198.94,198.92,12.56782229]
[1760345614186,0.10901737,198.94,198.92,15.80393899]
[1760345614392,0.10901737,198.94,198.93,0.71]
[1760345615591,0.10901737,198.94,198.93,5.73689388]
[1760345615793,0.78901737,198.94,198.9,10.87647521]
[1760345616105,0.68,198.93,198.9,5.02765208]
[1760345617409,3.2061167,198.93,198.89,5.0278759]
[1760345617596,2.5261167,198.93,198.89,5.0278759]
[1760345617922,3.2061167,198.92,198.89,5.0278759]
[1760345618411,2.63513407,198.94,198.89,5.7378759]
[1760345618610,2.5261167,198.93,198.89,5.7378759]
[1760345618813,0.68,198.92,198.89,5.0278759]
[1760345619006,3.2061167,198.92,198.89,5.0278759]
[1760345619718,3.2061167,198.92,198.87,5.02841051]
[1760345619918,3.2061167,198.92,198.87,5.73841051]
[1760345620219,3.2061167,198.92,198.87,18.3094368]
[1760345621097,2.5261167,198.92,198.87,18.3094368]
[1760345621300,3.2061167,198.92,198.87,18.3094368]
[1760345621505,3.2061167,198.92,198.87,98.61440631]
[1760345623018,3.2061167,198.92,198.89,5.02790487]
[1760345623517,2.5261167,198.93,198.89,5.73790487]
[1760345623919,3.2061167,198.93,198.89,5.73790487]
[1760345624304,3.2061167,198.93,198.89,5.02790487]
[1760345624505,0.68,198.92,198.89,80.30496951]
[1760345625009,3.2061167,198.92,198.89,80.30496951]
[1760345625213,3.2361167,198.92,198.89,80.30496951]
[1760345625520,2.5261167,198.92,198.89,80.30496951]
[1760345625711,2.5261167,198.92,198.89,81.00496951]
[1760345626312,2.5261167,198.92,198.89,80.30496951]
[1760345626527,2.5261167,198.92,198.89,85.33286136]
[1760345626705,3.2461167,198.92,198.89,85.33286136]
[1760345626904,2.5261167,198.9,198.89,80.30496951]
[1760345627206,3.2461167,198.9,198.89,80.30496951]
[1760345627402,0.72,198.92,198.87,5.02841051]
[1760345627606,2.5261167,198.91,198.88,0.65]
[1760345628008,24.0461167,198.93,198.88,0.65]
[1760345628224,0.72,198.92,198.88,0.65]
[1760345628409,2.5261167,198.9,198.87,5.02841051]
[1760345628715,3.2461167,198.89,198.87,5.02841051]
[1760345628925,3.2461167,198.88,198.87,80.30496951]
[1760345629225,3.2461167,198.88,198.86,85.3336152]
[1760345629522,2.5261167,198.88,198.86,80.30496951]
[1760345629905,3.2461167,198.88,198.86,80.30496951]
[1760345631616,4.66950397,198.88,198.86,80.30496951]
[1760345632925,4.66950397,198.87,198.86,80.30496951]
[1760345633523,3.94950397,198.87,198.86,80.30496951]
[1760345633706,3.94950397,198.89,198.86,85.98363289]
[1760345633909,0.10489836,198.87,198.86,85.33363289]
[1760345636704,0.10489836,198.87,198.86,89.93313686]
[1760345637238,0.099673,198.89,198.88,20.8]
[1760345637534,0.099673,198.89,198.88,24.74950397]
[1760345637726,0.099673,198.89,198.88,25.39950397]
[1760345638040,0.099673,198.89,198.88,30.42766165]
[1760345639108,0.099673,198.89,198.88,5.02815768]
[1760345639519,0.099673,198.89,198.88,9.62766165]
[1760345641308,0.099673,198.89,198.88,5.67815768]
[1760345641513,0.099673,198.89,198.88,5.02815768]
[1760345641705,0.099673,198.89,198.88,5.67815768]
[1760345641906,0.099673,198.89,198.88,9.62766165]
[1760345642330,0.1050039,198.9,198.89,80.300327]
[1760345642506,0.1050039,198.9,198.89,85.32823187]
[1760345644527,0.1050039,198.9,198.89,89.92773584]
[1760345647339,0.10920497,198.91,198.9,10.87647521]
[1760345647521,0.10951828,198.93,198.92,84.04067813]
[1760345648038,0.10951828,198.93,198.92,84.69067813]
[1760345648226,0.10951828,198.93,198.92,80.74117416]
[1760345649138,0.10951828,198.93,198.92,85.76832075]
[1760345649534,1e-08,198.93,198.92,100.59429993]
[1760345650625,1e-08,198.94,198.93,10.87647521]
[1760345650832,1e-08,198.94,198.93,11.52647521]
[1760345651136,1e-08,198.94,198.93,15.47597918]
[1760345651933,1e-08,198.95,198.94,14.82597918]
[1760345652238,1e-08,198.95,198.94,3.94950397]
[1760345652447,1e-08,198.95,198.94,4.59950397]
[1760345652620,1e-08,198.95,198.94,9.62614516]
[1760345653741,0.72,199.04,198.96,10.87647521]
[1760345653941,0.10359192,198.98,198.97,11.52647521]
[1760345654247,0.10359192,198.98,198.97,225.71764936]
[1760345654740,0.10359192,198.98,198.97,230.74353265]
[1760345655125,0.10359192,198.98,198.97,234.69303662]
[1760345655443,0.10359192,198.98,198.97,85.11705744]
[1760345655746,0.10359192,198.98,198.97,89.71656141]
[1760345655941,0.10359192,198.98,198.97,85.11705744]
[1760345656327,0.82359192,198.98,198.95,80.09117415]
[1760345656538,0.82359192,198.98,198.95,85.11755084]
[1760345656539,0.72,198.97,198.95,85.11755084]
[1760345657328,0.72,198.96,198.95,85.11755084]
[1760345657535,0.82359192,198.98,198.95,85.11755084]
[1760345659056,0.10359192,198.98,198.96,0.7]
[1760345659462,0.10359192,198.98,198.95,101.63302615]
[1760345659642,0.72,198.97,198.95,85.11755084]
[1760345659843,0.72,198.96,198.93,5.02689388]
[1760345660046,0.72,198.95,198.93,5.02689388]
[1760345660234,3.94950397,198.97,198.93,5.02689388]
[1760345660545,0.10359192,198.98,198.93,5.02689388]
[1760345660546,4.66950397,198.96,198.93,5.02689388]
[1760345660854,4.66950397,198.95,198.89,93.36042244]
[1760345661050,3.94950397,198.94,198.89,93.36042244]
[1760345661249,0.72,198.93,198.89,93.36042244]
[1760345661749,0.72,198.93,198.89,92.66042244]
[1760345661959,0.72,198.93,198.9,5.02765208]
[1760345662325,0.72,198.92,198.88,80.4]
[1760345662646,4.66950397,198.92,198.88,85.42815427]
[1760345662949,3.94950397,198.92,198.88,85.42815427]
[1760345663255,0.72,198.92,198.88,85.42815427]
[1760345663851,20.8,198.93,198.88,86.12815427]
[1760345664149,0.72,198.92,198.88,85.42815427]
[1760345665027,20.8,198.93,198.88,86.12815427]
[1760345665247,0.72,198.92,198.88,86.12815427]
[1760345666649,3.94950397,198.89,198.82,5.02967508]
[1760345666851,3.94950397,198.84,198.82,85.42967508]
[1760345667059,3.94950397,198.84,198.82,5.02967508]
[1760345667557,4.66950397,198.84,198.81,5.02992807]
[1760345668253,0.72,198.89,198.81,5.02992807]
[1760345668456,0.72,198.91,198.84,3.94950397]
[1760345668632,4.66950397,198.91,198.85,0.7]
[1760345668833,4.66950397,198.91,198.85,81.1]
[1760345669155,25.46950397,198.91,198.85,81.1]
[1760345669360,4.66950397,198.91,198.85,85.04950397]
[1760345669535,4.66950397,198.91,198.86,5.02866338]
[1760345669736,3.94950397,198.91,198.86,5.72866338]
[1760345669934,0.72,198.9,198.86,5.02866338]
[1760345670669,3.94950397,198.91,198.86,5.02866338]
[1760345670960,0.72,198.9,198.86,5.02866338]
[1760345672161,4.66950397,198.9,198.85,5.02891626]
[1760345672462,4.66950397,198.9,198.85,5.72891626]
[1760345673552,0.72,198.89,198.84,5.02916918]
[1760345673757,3.94950397,198.85,198.73,5.731729]
[1760345673960,20.8,198.87,198.73,5.731729]
[1760345673961,3.94950397,198.79,198.73,5.731729]
[1760345674150,4.66950397,198.79,198.73,5.731729]
[1760345675062,4.66950397,198.79,198.73,18.31161125]
[1760345675357,3.94950397,198.78,198.73,18.31161125]
[1760345675565,4.66950397,198.78,198.73,18.31161125]
[1760345675766,3.94950397,198.77,198.73,18.31161125]
[1760345676064,3.94950397,198.76,198.73,5.731729]
[1760345676442,0.72,198.79,198.73,5.731729]
[1760345676937,3.94950397,198.78,198.73,5.731729]
[1760345677147,4.66950397,198.77,198.73,5.031729]
[1760345677545,0.72,198.76,198.73,5.031729]
[1760345677748,5.03021839,198.8,198.72,0.2]
[1760345677749,3.94950397,198.74,198.72,0.2]
[1760345677950,4.66950397,198.73,198.72,0.2]
[1760345678752,0.72,198.73,198.72,0.2]
[1760345678946,0.72,198.73,198.72,5.23220611]
[1760345679162,3.94950397,198.75,198.72,5.23220611]
[1760345679442,4.66950397,198.76,198.72,5.23220611]
[1760345679649,0.72,198.75,198.72,5.23220611]
[1760345679849,4.66950397,198.75,198.72,5.23220611]
[1760345680050,4.66950397,198.75,198.72,85.63220611]
[1760345680571,0.72,198.78,198.72,86.33220611]
[1760345680758,4.66950397,198.78,198.72,86.33220611]
[1760345681460,20.8,198.8,198.72,85.63220611]
[1760345681461,3.94950397,198.76,198.72,85.63220611]
[1760345681660,4.66950397,198.75,198.72,85.63220611]
[1760345682348,0.72,198.75,198.72,85.63220611]
[1760345682550,0.72,198.74,198.72,85.63220611]
[1760345682957,29.77993732,198.8,198.72,85.63220611]
[1760345682958,4.66950397,198.76,198.72,85.63220611]
[1760345683252,0.72,198.75,198.72,85.63220611]
[1760345684969,3.94950397,198.73,198.72,5.23220611]
[1760345685152,0.67,198.73,198.72,5.23220611]
[1760345685469,3.94950397,198.74,198.72,5.23220611]
[1760345685653,4.61950397,198.74,198.72,5.23220611]
[1760345686380,4.61950397,198.73,198.72,0.2]
[1760345687672,20.8,198.77,198.72,5.23217945]
[1760345687881,3.94950397,198.75,198.72,5.92217945]
[1760345688170,3.94950397,198.75,198.72,5.23217945]
[1760345688375,4.60950397,198.74,198.72,0.2]
[1760345688968,3.94950397,198.73,198.72,0.2]
[1760345689356,25.83098866,198.77,198.72,0.2]
[1760345689554,3.94950397,198.75,198.72,0.2]
[1760345690167,4.60950397,198.75,198.72,0.2]
[1760345690354,4.60950397,198.74,198.72,0.2]
[1760345690548,25.83098866,198.77,198.72,0.2]
[1760345690549,3.94950397,198.75,198.72,0.2]
[1760345691474,3.1910074,198.75,198.72,80.6]
[1760345692378,3.1910074,198.75,198.72,85.63217165]
[1760345692675,2.5310074,198.75,198.72,85.63217165]
[1760345692875,2.5310074,198.75,198.72,86.32217165]
[1760345693070,2.5310074,198.75,198.72,85.63217165]
[1760345693672,2.5310074,198.75,198.72,86.32217165]
[1760345693974,0.10489913,198.73,198.72,86.32217165]
[1760345695476,0.10489913,198.73,198.72,85.63217165]
[1760345695678,0.10489913,198.73,198.72,5.23217165]
[1760345698480,0.10489913,198.73,198.72,5.92217165]
[1760345698680,0.10489913,198.73,198.72,5.23217165]
[1760345698875,0.10489913,198.73,198.72,5.92217165]
[1760345699765,0.10489913,198.73,198.72,88.85317905]
[1760345700367,0.0934499,198.74,198.73,10.87647521]
[1760345700678,1e-08,198.75,198.73,14.09748261]
[1760345700884,1e-08,198.75,198.74,14.09748261]
[1760345701071,1e-08,198.75,198.74,19.12918231]
[1760345703561,1e-08,198.75,198.74,16.59817491]
[1760345703756,1e-08,198.75,198.74,5.0316997]
[1760345704186,1e-08,198.75,198.74,8.2527071]
[1760345704375,1e-08,198.75,198.74,7.5627071]
[1760345704882,1e-08,198.75,198.74,5.0316997]
[1760345705561,1e-08,198.75,198.73,7.5629603]
[1760345705885,1e-08,198.75,198.74,2.5310074]
[1760345706383,1e-08,198.75,198.74,3.2210074]
[1760345707486,1e-08,198.75,198.74,5.0316997]
[1760345708684,1e-08,198.75,198.74,85.4316997]
[1760345708984,0.66000001,198.75,198.74,85.4316997]
[1760345709372,1e-08,198.75,198.74,85.4316997]
[1760345709958,1e-08,198.75,198.74,88.6527071]
[1760345710472,0.09319824,198.79,198.78,80.0844701]
[1760345711475,0.10837785,198.8,198.79,10.87647521]
[1760345711695,0.10837785,198.8,198.79,14.09748261]
[1760345712189,0.10837785,198.8,198.79,85.11490422]
[1760345713991,0.21094935,198.8,198.79,85.11490422]
[1760345714499,0.21094935,198.8,198.79,85.80490422]
[1760345714812,0.1025715,198.8,198.79,85.11490422]
[1760345714982,0.7625715,198.8,198.79,5.03043412]
[1760345716489,0.7625715,198.8,198.78,5.03068719]
[1760345719398,2.6335789,198.8,198.78,85.11515729]
[1760345719590,3.2110074,198.79,198.78,85.11515729]
[1760345719996,0.68,198.79,198.78,85.11515729]
[1760345721791,0.1025715,198.8,198.78,85.11515729]
[1760345721994,0.1025715,198.8,198.79,3.2010074]
[1760345722203,0.1025715,198.8,198.79,83.2854775]
[1760345722399,0.1025715,198.8,198.79,80.7544701]
[1760345722594,0.1025715,198.8,198.79,80.0844701]
[1760345723497,0.1025715,198.8,198.79,80.7544701]
[1760345723683,0.1025715,198.8,198.79,80.0844701]
[1760345724903,0.1025715,198.8,198.79,85.11490422]
[1760345725412,0.1025715,198.8,198.79,85.78490422]
[1760345725698,0.10804687,198.81,198.8,90.85837381]
[1760345725893,0.10804687,198.81,198.8,94.05938121]
[1760345727104,0.10804687,198.81,198.8,99.08956229]
[1760345727890,0.10804687,198.81,198.8,96.55855489]
[1760345730907,0.10804687,198.81,198.8,230.65855489]
[1760345732690,0.10804687,198.81,198.8,85.01207968]
[1760345733911,0.21760153,198.81,198.8,85.01207968]
[1760345734608,0.10955466,198.81,198.8,85.01207968]
[1760345738624,3.32056206,198.81,198.78,79.9818986]
[1760345738920,0.68,198.8,198.78,79.9818986]
[1760345739105,3.2110074,198.79,198.76,5.03119339]
[1760345739407,0.68,198.78,198.76,5.03119339]
[1760345743286,0.10955466,198.81,198.77,0.67]
[1760345743501,0.78955466,198.81,198.77,0.67]
[1760345743693,0.10955466,198.81,198.76,20.14018428]
[1760345743905,0.68,198.8,198.76,17.60917688]
[1760345745607,0.68,198.8,198.76,20.81018428]
[1760345745802,0.10955466,198.81,198.76,17.60917688]
[1760345746012,0.68,198.79,198.76,17.60917688]
[1760345746196,0.68,198.79,198.76,97.59107548]
[1760345747714,2.64056206,198.81,198.73,5.03175409]
[1760345747715,2.5310074,198.77,198.73,5.03175409]
[1760345747910,3.2210074,198.76,198.73,5.03175409]
[1760345748111,0.69,198.75,198.73,85.01365269]
[1760345748310,0.69,198.74,198.73,85.01365269]
[1760345749094,0.69,198.74,198.73,79.9818986]
[1760345749095,3.2210074,198.74,198.73,79.9818986]
[1760345749804,0.69,198.74,198.73,79.9818986]
[1760345750400,0.69,198.77,198.73,85.0138515]
[1760345750604,0.69,198.76,198.73,85.0138515]
[1760345750899,0.69,198.75,198.73,85.0138515]
[1760345751106,0.69,198.74,198.73,85.0138515]
[1760345752200,0.69,198.74,198.73,5.0319529]
[1760345753409,0.69,198.74,198.73,85.0138515]
[1760345753612,20.8,198.8,198.73,5.0319529]
[1760345753814,3.95421138,198.78,198.73,5.6919529]
[1760345754013,0.09618199,198.74,198.73,5.0319529]
[1760345754833,0.09618199,198.74,198.73,17.61183515]
[1760345755521,0.09618199,198.74,198.73,18.27183515]
[1760345759898,0.09798086,198.75,198.74,10.87647521]
[1760345760106,0.09798086,198.75,198.74,95.89068659]
[1760345762327,0.78798086,198.75,198.74,85.4316997]
[1760345762528,0.09798086,198.75,198.74,85.4316997]
[1760345763103,4.05219224,198.75,198.74,85.4316997]
[1760345763308,4.74219224,198.75,198.74,80.4]
[1760345763604,4.74219224,198.75,198.73,5.0319172]
[1760345763810,4.64421138,198.74,198.73,5.0319172]
[1760345765806,4.64421138,198.74,198.72,0.2]
[1760345766015,3.95421138,198.73,198.72,0.2]
[1760345766519,4.64421138,198.73,198.72,0.2]
[1760345766726,0.69,198.73,198.72,0.2]
[1760345766906,4.64421138,198.73,198.72,0.2]
[1760345768008,5.7219529,198.73,198.72,0.2]
[1760345768209,9.67616428,198.73,198.72,0.2]
[1760345768721,3.95421138,198.7,198.69,0.2]
[1760345769120,4.64421138,198.7,198.69,0.2]
[1760345770111,3.95421138,198.74,198.69,5.89296592]
[1760345770516,3.95421138,198.74,198.7,0.66]
[1760345770722,4.64421138,198.74,198.69,5.23296592]
[1760345770916,3.95421138,198.74,198.69,18.47538073]
[1760345771121,0.69,198.73,198.69,18.47538073]
[1760345771319,3.95421138,198.72,198.69,5.89296592]
[1760345773021,3.95421138,198.72,198.69,86.29296592]
[1760345773810,0.09565877,198.7,198.69,86.29296592]
[1760345775324,0.11044318,198.71,198.7,91.18081644]
[1760345775524,0.11044318,198.71,198.69,0.2]
[1760345775732,0.11044318,198.71,198.69,5.23296177]
[1760345775923,0.80044318,198.71,198.69,5.23296177]
[1760345777731,0.66,198.7,198.69,0.2]
[1760345777943,4.61421138,198.7,198.69,0.2]
[1760345780219,0.66,198.7,198.69,0.2]
[1760345780918,4.61421138,198.7,198.69,0.2]
[1760345781725,9.64692401,198.7,198.69,0.2]
[1760345782723,0.66,198.7,198.69,0.2]
[1760345782927,4.72465456,198.71,198.69,0.2]
[1760345783236,0.66,198.7,198.69,0.2]
[1760345783813,4.06465456,198.71,198.69,0.2]
[1760345784144,0.66,198.7,198.69,0.2]
[1760345784336,4.72465456,198.71,198.69,0.2]
[1760345784922,4.06465456,198.71,198.69,0.2]
[1760345785545,4.72465456,198.71,198.69,0.2]
[1760345787445,0.11044318,198.71,198.69,5.23292613]
[1760345787624,0.11044318,198.71,198.69,0.2]
[1760345788731,0.77044318,198.71,198.69,0.2]
[1760345789047,0.11044318,198.71,198.69,0.2]
[1760345789422,4.72465456,198.71,198.69,80.50434123]
[1760345789623,4.06465456,198.71,198.69,80.50434123]
[1760345791464,0.11044318,198.71,198.7,0.72]
[1760345791631,0.11044318,198.71,198.69,85.53728091]
[1760345792157,0.11044318,198.71,198.7,0.72]
[1760345792757,0.11044318,198.71,198.7,4.67421138]
[1760345792924,0.10265298,198.73,198.71,10.87647521]
[1760345793124,0.10265298,198.73,198.72,3.95421138]
[1760345793345,0.10265298,198.73,198.72,0.72]
[1760345793649,0.10265298,198.73,198.72,4.67421138]
[1760345793831,0.20488597,198.73,198.72,4.67421138]
[1760345794339,0.20488597,198.73,198.72,9.70641749]
[1760345794736,0.10223299,198.73,198.72,9.70641749]
[1760345796024,0.10223299,198.73,198.72,5.03220611]
[1760345796542,0.76223299,198.73,198.71,5.03243209]
[1760345796723,4.71644437,198.73,198.71,5.03243209]
[1760345797123,0.76223299,198.73,198.71,5.03243209]
[1760345797444,0.10223299,198.73,198.71,5.75243209]
[1760345797829,0.10223299,198.73,198.71,5.03243209]
[1760345798236,0.76223299,198.73,198.71,5.03243209]
[1760345798447,0.10223299,198.73,198.7,5.03271263]
[1760345798632,0.10223299,198.73,198.7,5.75271263]
[1760345800225,0.10223299,198.73,198.71,0.72]
[1760345800747,0.10223299,198.73,198.72,0.72]
[1760345802154,0.10223299,198.73,198.72,5.75220611]
[1760345804760,0.10223299,198.73,198.72,100.9828927]
[1760345805458,1e-08,198.73,198.72,100.9828927]
[1760345805635,1e-08,198.75,198.74,20.8]
[1760345805834,1e-08,198.75,198.74,24.75421138]
[1760345806035,1e-08,198.75,198.74,25.41421138]
[1760345806246,1e-08,198.75,198.74,30.44591108]
[1760345808443,1e-08,198.75,198.74,16.56817491]
[1760345808631,1e-08,198.75,198.74,5.6916997]
[1760345809034,1e-08,198.75,198.74,5.0316997]
[1760345809255,1e-08,198.75,198.74,5.7216997]
[1760345810051,1e-08,198.75,198.74,5.0316997]
[1760345810052,0.67000001,198.75,198.74,5.0316997]
[1760345810270,1e-08,198.75,198.74,5.0316997]
[1760345810563,0.67000001,198.75,198.74,5.0316997]
[1760345810942,1e-08,198.75,198.72,17.6127214]
[1760345811445,0.67000001,198.75,198.72,17.6127214]
[1760345811966,4.62421138,198.74,198.7,5.03246764]
[1760345812145,0.67,198.73,198.7,5.03246764]
[1760345812340,0.67,198.72,198.7,5.03246764]
[1760345812547,4.62421138,198.74,198.7,5.03246764]
[1760345812741,0.67,198.74,198.7,5.72246764]